[Event "Early Titled Tuesday Blitz | February 8 2022"]
[White "Papp, Petra"]
[Black "Kornyukov, Alexey"]
[WhiteFideId "739049"]
[BlackFideId "4150457"]
[WhiteElo "2259"]
[BlackElo "2303"]
[Result "1-0"]
[Round "05"]
[TimeControl "180+1"]
[Date "2022.02.08"]
[WhiteClock "0:00:18"]
[BlackClock "0:00:22"]

1. e4 {[%clk 0:02:54]}  c5 {[%clk 0:02:59]} 2. Nf3 {[%clk 0:02:54]}  Nc6 {[%clk 0:02:56]} 3. d4 {[%clk 0:02:53]}  cxd4 {[%clk 0:02:56]} 4. Nxd4 {[%clk 0:02:54]}  e5 {[%clk 0:02:56]} 5. Nb3 {[%clk 0:02:44]}  Nf6 {[%clk 0:02:55]} 6. f3 {[%clk 0:02:36]}  Nxe4 {[%clk 0:02:30]} 7. fxe4 {[%clk 0:02:16]}  Qh4+ {[%clk 0:02:29]} 8. Kd2 {[%clk 0:02:09]}  Qf4+ {[%clk 0:02:24]} 9. Ke2 {[%clk 0:02:08]}  Qxe4+ {[%clk 0:02:22]} 10. Be3 {[%clk 0:02:06]}  d5 {[%clk 0:02:18]} 11. Nc3 {[%clk 0:01:54]}  Qc4+ {[%clk 0:01:58]} 12. Kf2 {[%clk 0:01:46]}  Qh4+ {[%clk 0:01:56]} 13. g3 {[%clk 0:01:43]}  Qf6+ {[%clk 0:01:52]} 14. Kg1 {[%clk 0:01:43]}  d4 {[%clk 0:01:51]} 15. Nb5 {[%clk 0:01:32]}  Bd6 {[%clk 0:01:14]} 16. Bf2 {[%clk 0:01:19]}  O-O {[%clk 0:01:10]} 17. Bg2 {[%clk 0:01:18]}  a6 {[%clk 0:01:02]} 18. Nxd6 {[%clk 0:01:10]}  Qxd6 {[%clk 0:01:02]} 19. c3 {[%clk 0:01:10]}  d3 {[%clk 0:00:58]} 20. Bc5 {[%clk 0:01:08]}  Qf6 {[%clk 0:00:55]} 21. Bxf8 {[%clk 0:01:05]}  Kxf8 {[%clk 0:00:55]} 22. Qxd3 {[%clk 0:01:01]}  Bf5 {[%clk 0:00:55]} 23. Qe2 {[%clk 0:00:59]}  Rd8 {[%clk 0:00:52]} 24. Rf1 {[%clk 0:00:58]}  Qg6 {[%clk 0:00:52]} 25. Qf2 {[%clk 0:00:55]}  Bd3 {[%clk 0:00:51]} 26. Re1 {[%clk 0:00:50]}  e4 {[%clk 0:00:50]} 27. Nc5 {[%clk 0:00:46]}  b6 {[%clk 0:00:46]} 28. Nxe4 {[%clk 0:00:44]}  Bxe4 {[%clk 0:00:45]} 29. Bxe4 {[%clk 0:00:44]}  Qd6 {[%clk 0:00:44]} 30. Kg2 {[%clk 0:00:39]}  Ne5 {[%clk 0:00:43]} 31. Rhf1 {[%clk 0:00:39]}  f6 {[%clk 0:00:41]} 32. Kg1 {[%clk 0:00:38]}  Ng4 {[%clk 0:00:40]} 33. Qd4 {[%clk 0:00:25]}  Qc7 {[%clk 0:00:39]} 34. Qb4+ {[%clk 0:00:25]}  Kg8 {[%clk 0:00:37]} 35. Rd1 {[%clk 0:00:23]}  Re8 {[%clk 0:00:35]} 36. Bd5+ {[%clk 0:00:22]}  Kh8 {[%clk 0:00:34]} 37. Qxg4 {[%clk 0:00:22]}  h6 {[%clk 0:00:34]} 38. Rfe1 {[%clk 0:00:20]}  Rd8 {[%clk 0:00:33]} 39. Be4 {[%clk 0:00:18]}  Qc5+ {[%clk 0:00:31]} 40. Kg2 {[%clk 0:00:18]}  Rg8 {[%clk 0:00:30]} 41. Qg6 {[%clk 0:00:17]}  f5 {[%clk 0:00:27]} 42. Bxf5 {[%clk 0:00:16]}  Qxf5 {[%clk 0:00:27]} 43. Qxf5 {[%clk 0:00:17]}  b5 {[%clk 0:00:27]} 44. Rd6 {[%clk 0:00:16]}  a5 {[%clk 0:00:24]} 45. Ree6 {[%clk 0:00:17]}  b4 {[%clk 0:00:22]} 46. Rxh6+ {[%clk 0:00:16]}  gxh6 {[%clk 0:00:22]} 47. Rxh6+ {[%clk 0:00:17]}  Kg7 {[%clk 0:00:22]} 48. Rh7# {[%clk 0:00:18]} 1-0


[Site "https://www.chess.com"]

[Event "Early Titled Tuesday Blitz | February 8 2022"]
[White "Pasini, Nicolo"]
[Black "Saim, Mohamed Ilias"]
[WhiteFideId "2809600"]
[BlackFideId "7900465"]
[WhiteElo "2065"]
[BlackElo "2006"]
[Result "1-0"]
[Round "05"]
[TimeControl "180+1"]
[Date "2022.02.08"]
[WhiteClock "0:00:19"]
[BlackClock "0:00:02"]

1. e4 {[%clk 0:03:00]}  c6 {[%clk 0:02:59]} 2. d4 {[%clk 0:02:59]}  d5 {[%clk 0:02:58]} 3. exd5 {[%clk 0:03:00]}  cxd5 {[%clk 0:02:56]} 4. Bd3 {[%clk 0:03:00]}  Nc6 {[%clk 0:02:54]} 5. c3 {[%clk 0:03:01]}  Nf6 {[%clk 0:02:53]} 6. Bf4 {[%clk 0:03:01]}  Bg4 {[%clk 0:02:52]} 7. Qb3 {[%clk 0:03:01]}  Qb6 {[%clk 0:02:44]} 8. Na3 {[%clk 0:02:59]}  Qxb3 {[%clk 0:02:31]} 9. axb3 {[%clk 0:03:00]}  a6 {[%clk 0:02:29]} 10. b4 {[%clk 0:02:33]}  e6 {[%clk 0:02:04]} 11. Ne2 {[%clk 0:02:22]}  Be7 {[%clk 0:02:00]} 12. O-O {[%clk 0:02:15]}  O-O {[%clk 0:01:57]} 13. b5 {[%clk 0:02:15]}  axb5 {[%clk 0:01:55]} 14. Nxb5 {[%clk 0:02:16]}  Bxe2 {[%clk 0:01:38]} 15. Bxe2 {[%clk 0:02:12]}  Ne4 {[%clk 0:01:29]} 16. f3 {[%clk 0:01:59]}  Nf6 {[%clk 0:01:07]} 17. Nc7 {[%clk 0:01:52]}  Rac8 {[%clk 0:00:56]} 18. g4 {[%clk 0:01:46]}  h6 {[%clk 0:00:45]} 19. h3 {[%clk 0:01:43]}  Nd7 {[%clk 0:00:39]} 20. Nb5 {[%clk 0:01:36]}  e5 {[%clk 0:00:30]} 21. dxe5 {[%clk 0:01:35]}  Ndxe5 {[%clk 0:00:29]} 22. Be3 {[%clk 0:01:22]}  Rfe8 {[%clk 0:00:24]} 23. Kf2 {[%clk 0:01:17]}  Nc4 {[%clk 0:00:19]} 24. Bxc4 {[%clk 0:01:15]}  dxc4 {[%clk 0:00:18]} 25. Kg2 {[%clk 0:01:00]}  Ne5 {[%clk 0:00:17]} 26. Rfd1 {[%clk 0:00:48]}  Nd3 {[%clk 0:00:15]} 27. b4 {[%clk 0:00:43]}  Bf6 {[%clk 0:00:11]} 28. Nd6 {[%clk 0:00:33]}  Rxe3 {[%clk 0:00:07]} 29. Nxc8 {[%clk 0:00:32]}  Re2+ {[%clk 0:00:04]} 30. Kf1 {[%clk 0:00:19]}  Rf2+ {[%clk 0:00:03]} 31. Kg1 {[%clk 0:00:20]}  Be5 {[%clk 0:00:02]} 32. Rxd3 {[%clk 0:00:19]} 1-0


[Site "https://www.chess.com"]

[Event "Early Titled Tuesday Blitz | February 8 2022"]
[White "Perez Gormaz, Matias"]
[Black "Andreikin, Dmitry"]
[WhiteFideId "3406342"]
[BlackFideId "4158814"]
[WhiteElo "2352"]
[BlackElo "2736"]
[Result "0-1"]
[Round "05"]
[TimeControl "180+1"]
[Date "2022.02.08"]
[WhiteClock "0:00:05"]
[BlackClock "0:01:56"]

1. e4 {[%clk 0:03:00]}  c5 {[%clk 0:02:59]} 2. Nf3 {[%clk 0:03:01]}  e6 {[%clk 0:03:00]} 3. g3 {[%clk 0:03:01]}  Nc6 {[%clk 0:02:59]} 4. Bg2 {[%clk 0:03:01]}  Nf6 {[%clk 0:02:58]} 5. Qe2 {[%clk 0:03:02]}  e5 {[%clk 0:02:58]} 6. O-O {[%clk 0:03:02]}  d6 {[%clk 0:02:58]} 7. c3 {[%clk 0:03:03]}  g6 {[%clk 0:02:59]} 8. Rd1 {[%clk 0:03:04]}  Bg4 {[%clk 0:02:51]} 9. h3 {[%clk 0:02:59]}  Bxf3 {[%clk 0:02:51]} 10. Bxf3 {[%clk 0:03:00]}  Bh6 {[%clk 0:02:50]} 11. Na3 {[%clk 0:02:55]}  O-O {[%clk 0:02:50]} 12. Nc4 {[%clk 0:02:56]}  b5 {[%clk 0:02:49]} 13. Ne3 {[%clk 0:02:56]}  Rb8 {[%clk 0:02:46]} 14. a4 {[%clk 0:02:50]}  b4 {[%clk 0:02:45]} 15. d3 {[%clk 0:02:50]}  Na5 {[%clk 0:02:36]} 16. Qc2 {[%clk 0:02:21]}  bxc3 {[%clk 0:02:33]} 17. bxc3 {[%clk 0:02:20]}  Nb3 {[%clk 0:02:34]} 18. Ra3 {[%clk 0:01:55]}  Nxc1 {[%clk 0:02:33]} 19. Qxc1 {[%clk 0:01:56]}  Kg7 {[%clk 0:02:27]} 20. a5 {[%clk 0:01:49]}  Qc7 {[%clk 0:02:25]} 21. Kg2 {[%clk 0:01:30]}  Rb5 {[%clk 0:02:25]} 22. Qa1 {[%clk 0:01:13]}  Bxe3 {[%clk 0:02:24]} 23. fxe3 {[%clk 0:01:14]}  Rfb8 {[%clk 0:02:24]} 24. Rd2 {[%clk 0:01:06]}  Rb1 {[%clk 0:02:23]} 25. Qa2 {[%clk 0:01:07]}  h5 {[%clk 0:02:11]} 26. Rf2 {[%clk 0:01:04]}  Re1 {[%clk 0:02:07]} 27. Be2 {[%clk 0:00:35]}  Rbb1 {[%clk 0:02:05]} 28. Bf1 {[%clk 0:00:23]}  c4 {[%clk 0:02:04]} 29. Qd2 {[%clk 0:00:02]}  Rbd1 {[%clk 0:02:02]} 30. Qc2 {[%clk 0:00:02]}  cxd3 {[%clk 0:02:02]} 31. Bxd3 {[%clk 0:00:03]}  Rg1+ {[%clk 0:02:02]} 32. Kh2 {[%clk 0:00:03]}  Rh1+ {[%clk 0:01:58]} 33. Kg2 {[%clk 0:00:04]}  Qd7 {[%clk 0:01:59]} 34. Kf3 {[%clk 0:00:05]}  Rde1 {[%clk 0:01:56]} 0-1


[Site "https://www.chess.com"]

[Event "Early Titled Tuesday Blitz | February 8 2022"]
[White "Potapova, Margarita"]
[Black "Jaskolka, Tomasz"]
[WhiteFideId "14126869"]
[BlackFideId "1170791"]
[WhiteElo "2209"]
[BlackElo "2054"]
[Result "1-0"]
[Round "05"]
[TimeControl "180+1"]
[Date "2022.02.08"]
[WhiteClock "0:01:26"]
[BlackClock "0:00:41"]

1. d4 {[%clk 0:02:58]}  Nf6 {[%clk 0:02:52]} 2. c4 {[%clk 0:02:58]}  e6 {[%clk 0:02:52]} 3. g3 {[%clk 0:02:58]}  d5 {[%clk 0:02:43]} 4. Nf3 {[%clk 0:02:58]}  Be7 {[%clk 0:02:34]} 5. Bg2 {[%clk 0:02:57]}  O-O {[%clk 0:02:34]} 6. O-O {[%clk 0:02:56]}  b6 {[%clk 0:02:23]} 7. cxd5 {[%clk 0:02:55]}  exd5 {[%clk 0:02:22]} 8. Nc3 {[%clk 0:02:56]}  Bb7 {[%clk 0:02:22]} 9. Bf4 {[%clk 0:02:55]}  Nbd7 {[%clk 0:02:21]} 10. Rc1 {[%clk 0:02:53]}  Rc8 {[%clk 0:02:08]} 11. Qa4 {[%clk 0:02:48]}  a6 {[%clk 0:02:03]} 12. Rfd1 {[%clk 0:02:47]}  Ne4 {[%clk 0:01:55]} 13. Qc2 {[%clk 0:02:44]}  Ndf6 {[%clk 0:01:53]} 14. Ne5 {[%clk 0:02:43]}  c5 {[%clk 0:01:42]} 15. dxc5 {[%clk 0:02:39]}  bxc5 {[%clk 0:01:41]} 16. Nxe4 {[%clk 0:02:35]}  Nxe4 {[%clk 0:01:32]} 17. Bxe4 {[%clk 0:02:35]}  dxe4 {[%clk 0:01:23]} 18. Rxd8 {[%clk 0:02:36]}  Rfxd8 {[%clk 0:01:24]} 19. h4 {[%clk 0:02:27]}  Bf6 {[%clk 0:01:09]} 20. Ng4 {[%clk 0:02:19]}  Be7 {[%clk 0:01:05]} 21. Ne3 {[%clk 0:02:17]}  g6 {[%clk 0:01:04]} 22. Bg5 {[%clk 0:02:15]}  f6 {[%clk 0:01:03]} 23. Qc4+ {[%clk 0:02:14]}  Kg7 {[%clk 0:01:02]} 24. Bf4 {[%clk 0:02:10]}  Rc6 {[%clk 0:00:55]} 25. Qb3 {[%clk 0:01:58]}  Ba8 {[%clk 0:00:53]} 26. Qc4 {[%clk 0:01:48]}  Bb7 {[%clk 0:00:53]} 27. Qxe4 {[%clk 0:01:45]}  Rc7 {[%clk 0:00:54]} 28. Qe6 {[%clk 0:01:37]}  Rcd7 {[%clk 0:00:53]} 29. Kh2 {[%clk 0:01:32]}  h6 {[%clk 0:00:51]} 30. Rg1 {[%clk 0:01:26]}  Kf8 {[%clk 0:00:41]} 31. Bxh6+ {[%clk 0:01:25]}  Ke8 {[%clk 0:00:42]} 32. Qg8+ {[%clk 0:01:25]}  Bf8 {[%clk 0:00:41]} 33. Qxf8# {[%clk 0:01:26]} 1-0


[Site "https://www.chess.com"]

[Event "Early Titled Tuesday Blitz | February 8 2022"]
[White "Qashashvili, Alexandre"]
[Black "Kostina, Nadezhda"]
[WhiteFideId "13600842"]
[BlackFideId "4195876"]
[WhiteElo "2316"]
[BlackElo "2001"]
[Result "1-0"]
[Round "05"]
[TimeControl "180+1"]
[Date "2022.02.08"]
[WhiteClock "0:00:14"]
[BlackClock "0:00:01"]

1. e4 {[%clk 0:03:00]}  c5 {[%clk 0:02:57]} 2. Nc3 {[%clk 0:03:01]}  Nc6 {[%clk 0:02:55]} 3. Nf3 {[%clk 0:03:01]}  g6 {[%clk 0:02:54]} 4. d3 {[%clk 0:03:01]}  Bg7 {[%clk 0:02:54]} 5. Be3 {[%clk 0:03:02]}  Nd4 {[%clk 0:02:51]} 6. Qd2 {[%clk 0:03:02]}  e6 {[%clk 0:02:34]} 7. Be2 {[%clk 0:02:59]}  Ne7 {[%clk 0:02:30]} 8. Bd1 {[%clk 0:02:57]}  h6 {[%clk 0:02:21]} 9. O-O {[%clk 0:02:54]}  a6 {[%clk 0:01:59]} 10. a4 {[%clk 0:02:49]}  d6 {[%clk 0:01:52]} 11. Rb1 {[%clk 0:02:44]}  Nxf3+ {[%clk 0:01:49]} 12. Bxf3 {[%clk 0:02:42]}  Nc6 {[%clk 0:01:49]} 13. g3 {[%clk 0:02:35]}  Nd4 {[%clk 0:01:39]} 14. Bg2 {[%clk 0:02:34]}  Bd7 {[%clk 0:01:29]} 15. b3 {[%clk 0:02:33]}  Qa5 {[%clk 0:01:22]} 16. Bxd4 {[%clk 0:02:08]}  Bxd4 {[%clk 0:01:12]} 17. b4 {[%clk 0:02:01]}  cxb4 {[%clk 0:00:53]} 18. Ne2 {[%clk 0:01:55]}  Bg7 {[%clk 0:00:49]} 19. Qxb4 {[%clk 0:01:50]}  Qxb4 {[%clk 0:00:49]} 20. Rxb4 {[%clk 0:01:50]}  Bc6 {[%clk 0:00:45]} 21. Rfb1 {[%clk 0:01:35]}  O-O-O {[%clk 0:00:41]} 22. e5 {[%clk 0:01:28]}  d5 {[%clk 0:00:21]} 23. Nd4 {[%clk 0:01:20]}  Bxe5 {[%clk 0:00:20]} 24. Nxc6 {[%clk 0:01:19]}  bxc6 {[%clk 0:00:20]} 25. Rb6 {[%clk 0:01:17]}  Kc7 {[%clk 0:00:19]} 26. Rxa6 {[%clk 0:01:16]}  Ra8 {[%clk 0:00:19]} 27. Rab6 {[%clk 0:01:09]}  Rxa4 {[%clk 0:00:15]} 28. Rb7+ {[%clk 0:01:08]}  Kd6 {[%clk 0:00:15]} 29. Rxf7 {[%clk 0:01:07]}  Ra2 {[%clk 0:00:15]} 30. c4 {[%clk 0:00:59]}  Bd4 {[%clk 0:00:14]} 31. Bh3 {[%clk 0:00:51]}  Re2 {[%clk 0:00:13]} 32. Bg4 {[%clk 0:00:48]}  Rd2 {[%clk 0:00:11]} 33. cxd5 {[%clk 0:00:43]}  exd5 {[%clk 0:00:10]} 34. Rd7+ {[%clk 0:00:33]}  Ke5 {[%clk 0:00:07]} 35. Re1+ {[%clk 0:00:30]}  Kf6 {[%clk 0:00:06]} 36. Re2 {[%clk 0:00:17]}  Rxe2 {[%clk 0:00:05]} 37. Bxe2 {[%clk 0:00:18]}  Ra8 {[%clk 0:00:04]} 38. Rd6+ {[%clk 0:00:18]}  Kf5 {[%clk 0:00:03]} 39. Rxc6 {[%clk 0:00:17]}  Ra2 {[%clk 0:00:02]} 40. Kf1 {[%clk 0:00:16]}  Ra1+ {[%clk 0:00:02]} 41. Kg2 {[%clk 0:00:16]}  Ra2 {[%clk 0:00:02]} 42. Kf3 {[%clk 0:00:16]}  g5 {[%clk 0:00:01]} 43. h3 {[%clk 0:00:14]} 1-0


[Site "https://www.chess.com"]

[Event "Early Titled Tuesday Blitz | February 8 2022"]
[White "Rangel, Daniel"]
[Black "Hansen, Eric"]
[WhiteFideId "2124475"]
[BlackFideId "2606771"]
[WhiteElo "2187"]
[BlackElo "2568"]
[Result "0-1"]
[Round "05"]
[TimeControl "180+1"]
[Date "2022.02.08"]
[WhiteClock "0:00:08"]
[BlackClock "0:00:16"]

1. c4 {[%clk 0:02:58]}  e5 {[%clk 0:02:54]} 2. g3 {[%clk 0:02:59]}  Nf6 {[%clk 0:02:54]} 3. Bg2 {[%clk 0:03:00]}  Bc5 {[%clk 0:02:55]} 4. Nf3 {[%clk 0:03:00]}  d6 {[%clk 0:02:55]} 5. d4 {[%clk 0:02:59]}  exd4 {[%clk 0:02:55]} 6. Nxd4 {[%clk 0:02:59]}  O-O {[%clk 0:02:56]} 7. O-O {[%clk 0:02:58]}  Re8 {[%clk 0:02:56]} 8. Nc3 {[%clk 0:02:58]}  h6 {[%clk 0:02:56]} 9. Nc2 {[%clk 0:02:46]}  Nc6 {[%clk 0:02:55]} 10. Be3 {[%clk 0:02:43]}  Bxe3 {[%clk 0:02:44]} 11. Nxe3 {[%clk 0:02:44]}  Ne5 {[%clk 0:02:44]} 12. b3 {[%clk 0:02:42]}  c6 {[%clk 0:02:43]} 13. Qd2 {[%clk 0:02:41]}  Qe7 {[%clk 0:02:40]} 14. Rad1 {[%clk 0:02:39]}  Rd8 {[%clk 0:02:41]} 15. h3 {[%clk 0:02:36]}  a5 {[%clk 0:02:08]} 16. Nc2 {[%clk 0:02:17]}  Bf5 {[%clk 0:02:05]} 17. Nd4 {[%clk 0:02:16]}  Bh7 {[%clk 0:02:01]} 18. e4 {[%clk 0:02:15]}  a4 {[%clk 0:02:00]} 19. Nxa4 {[%clk 0:01:32]}  Nxc4 {[%clk 0:01:57]} 20. Qe2 {[%clk 0:01:23]}  Ne5 {[%clk 0:01:40]} 21. Rfe1 {[%clk 0:01:11]}  Re8 {[%clk 0:01:36]} 22. Nf5 {[%clk 0:01:01]}  Bxf5 {[%clk 0:01:31]} 23. exf5 {[%clk 0:01:02]}  Qc7 {[%clk 0:01:31]} 24. Rc1 {[%clk 0:00:47]}  d5 {[%clk 0:01:27]} 25. Qd2 {[%clk 0:00:39]}  Qd6 {[%clk 0:01:08]} 26. f4 {[%clk 0:00:24]}  Ned7 {[%clk 0:01:07]} 27. g4 {[%clk 0:00:22]}  b5 {[%clk 0:00:44]} 28. Nc3 {[%clk 0:00:20]}  b4 {[%clk 0:00:44]} 29. Na4 {[%clk 0:00:19]}  Rxe1+ {[%clk 0:00:35]} 30. Rxe1 {[%clk 0:00:18]}  Re8 {[%clk 0:00:36]} 31. g5 {[%clk 0:00:18]}  Rxe1+ {[%clk 0:00:30]} 32. Qxe1 {[%clk 0:00:19]}  Nh5 {[%clk 0:00:24]} 33. g6 {[%clk 0:00:14]}  Kf8 {[%clk 0:00:21]} 34. Qe2 {[%clk 0:00:11]}  Nxf4 {[%clk 0:00:19]} 35. Qa6 {[%clk 0:00:08]}  fxg6 {[%clk 0:00:18]} 36. fxg6 {[%clk 0:00:08]}  Qxg6 {[%clk 0:00:17]} 37. Qc8+ {[%clk 0:00:08]}  Ke7 {[%clk 0:00:16]} 0-1


[Site "https://www.chess.com"]

[Event "Early Titled Tuesday Blitz | February 8 2022"]
[White "Rozhkov, Viacheslav"]
[Black "Brodowski, Piotr"]
[WhiteFideId "4181484"]
[BlackFideId "1124480"]
[WhiteElo "2324"]
[BlackElo "2422"]
[Result "0-1"]
[Round "05"]
[TimeControl "180+1"]
[Date "2022.02.08"]
[WhiteClock "0:00:01"]
[BlackClock "0:00:02"]

1. e4 {[%clk 0:03:00]}  d6 {[%clk 0:02:54]} 2. d4 {[%clk 0:03:00]}  Nf6 {[%clk 0:02:54]} 3. Nc3 {[%clk 0:03:00]}  g6 {[%clk 0:02:54]} 4. Be3 {[%clk 0:02:59]}  Nbd7 {[%clk 0:02:50]} 5. Qd2 {[%clk 0:02:59]}  c6 {[%clk 0:02:50]} 6. a4 {[%clk 0:02:58]}  Qa5 {[%clk 0:02:44]} 7. Nf3 {[%clk 0:02:37]}  Ng4 {[%clk 0:02:21]} 8. Bg5 {[%clk 0:02:28]}  e5 {[%clk 0:01:39]} 9. Bc4 {[%clk 0:01:45]}  Bg7 {[%clk 0:01:28]} 10. d5 {[%clk 0:01:18]}  h6 {[%clk 0:01:04]} 11. Bh4 {[%clk 0:01:15]}  g5 {[%clk 0:00:52]} 12. Bg3 {[%clk 0:01:15]}  Qb4 {[%clk 0:00:44]} 13. Bb3 {[%clk 0:01:04]}  Nc5 {[%clk 0:00:40]} 14. O-O {[%clk 0:00:55]}  O-O {[%clk 0:00:35]} 15. dxc6 {[%clk 0:00:51]}  Nxb3 {[%clk 0:00:35]} 16. cxb3 {[%clk 0:00:51]}  bxc6 {[%clk 0:00:35]} 17. Rfd1 {[%clk 0:00:47]}  Rd8 {[%clk 0:00:20]} 18. h3 {[%clk 0:00:47]}  Nf6 {[%clk 0:00:20]} 19. Nxe5 {[%clk 0:00:34]}  Bb7 {[%clk 0:00:20]} 20. Nc4 {[%clk 0:00:32]}  d5 {[%clk 0:00:20]} 21. exd5 {[%clk 0:00:24]}  cxd5 {[%clk 0:00:20]} 22. Ne5 {[%clk 0:00:18]}  Qxb3 {[%clk 0:00:14]} 23. Nb5 {[%clk 0:00:14]}  Ne4 {[%clk 0:00:13]} 24. Qd3 {[%clk 0:00:11]}  Qxd3 {[%clk 0:00:05]} 25. Nxd3 {[%clk 0:00:11]}  Nxg3 {[%clk 0:00:06]} 26. fxg3 {[%clk 0:00:12]}  a6 {[%clk 0:00:06]} 27. Nc3 {[%clk 0:00:08]}  d4 {[%clk 0:00:04]} 28. Ne2 {[%clk 0:00:08]}  Re8 {[%clk 0:00:04]} 29. Nc5 {[%clk 0:00:07]}  Bd5 {[%clk 0:00:02]} 30. Rd2 {[%clk 0:00:04]}  Bc4 {[%clk 0:00:02]} 31. Nxd4 {[%clk 0:00:04]}  Rad8 {[%clk 0:00:02]} 32. Rad1 {[%clk 0:00:02]}  Rc8 {[%clk 0:00:03]} 33. b4 {[%clk 0:00:01]}  a5 {[%clk 0:00:03]} 34. Nb5 {[%clk 0:00:01]}  axb4 {[%clk 0:00:03]} 35. Nd3 {[%clk 0:00:01]}  b3 {[%clk 0:00:02]} 0-1


[Site "https://www.chess.com"]

[Event "Early Titled Tuesday Blitz | February 8 2022"]
[White "Rustemov, Alexander"]
[Black "Yang, Kaiqi"]
[WhiteFideId "4119002"]
[BlackFideId "8604398"]
[WhiteElo "2825"]
[BlackElo "2373"]
[Result "1-0"]
[Round "05"]
[TimeControl "180+1"]
[Date "2022.02.08"]
[WhiteClock "0:00:08"]
[BlackClock "0:00:05"]

1. d4 {[%clk 0:03:00]}  Nf6 {[%clk 0:02:59]} 2. c4 {[%clk 0:03:00]}  g6 {[%clk 0:02:59]} 3. Nf3 {[%clk 0:02:59]}  Bg7 {[%clk 0:03:00]} 4. g3 {[%clk 0:03:00]}  O-O {[%clk 0:03:00]} 5. Bg2 {[%clk 0:03:01]}  d6 {[%clk 0:03:01]} 6. O-O {[%clk 0:03:01]}  c5 {[%clk 0:03:01]} 7. Nc3 {[%clk 0:03:00]}  Nc6 {[%clk 0:03:01]} 8. dxc5 {[%clk 0:03:00]}  dxc5 {[%clk 0:03:02]} 9. Bf4 {[%clk 0:03:00]}  Nh5 {[%clk 0:02:59]} 10. Be3 {[%clk 0:02:58]}  b6 {[%clk 0:02:59]} 11. Qc1 {[%clk 0:02:58]}  Be6 {[%clk 0:02:42]} 12. Rd1 {[%clk 0:02:40]}  Qe8 {[%clk 0:02:14]} 13. Nd5 {[%clk 0:02:32]}  Rc8 {[%clk 0:02:15]} 14. Bh6 {[%clk 0:02:29]}  f6 {[%clk 0:02:00]} 15. Bxg7 {[%clk 0:02:20]}  Nxg7 {[%clk 0:02:01]} 16. a3 {[%clk 0:02:16]}  Kh8 {[%clk 0:01:44]} 17. Qc3 {[%clk 0:02:15]}  Nf5 {[%clk 0:01:12]} 18. e3 {[%clk 0:02:13]}  Nd6 {[%clk 0:01:00]} 19. Nd2 {[%clk 0:02:06]}  Bxd5 {[%clk 0:00:55]} 20. Bxd5 {[%clk 0:02:03]}  Ne5 {[%clk 0:00:47]} 21. f4 {[%clk 0:01:58]}  Nd7 {[%clk 0:00:41]} 22. Be6 {[%clk 0:01:44]}  Rc7 {[%clk 0:00:38]} 23. e4 {[%clk 0:01:36]}  Qa8 {[%clk 0:00:19]} 24. Re1 {[%clk 0:01:35]}  Qc6 {[%clk 0:00:19]} 25. e5 {[%clk 0:01:28]}  Ne8 {[%clk 0:00:16]} 26. Bd5 {[%clk 0:01:21]}  Qa4 {[%clk 0:00:15]} 27. b3 {[%clk 0:01:15]}  Qa5 {[%clk 0:00:15]} 28. b4 {[%clk 0:01:13]}  Qa6 {[%clk 0:00:15]} 29. Re3 {[%clk 0:00:45]}  Kg7 {[%clk 0:00:14]} 30. Rae1 {[%clk 0:00:44]}  cxb4 {[%clk 0:00:14]} 31. axb4 {[%clk 0:00:42]}  fxe5 {[%clk 0:00:11]} 32. Nf3 {[%clk 0:00:34]}  Nef6 {[%clk 0:00:09]} 33. Qd2 {[%clk 0:00:10]}  Nxd5 {[%clk 0:00:05]} 34. cxd5 {[%clk 0:00:11]}  Qc4 {[%clk 0:00:03]} 35. Nxe5 {[%clk 0:00:11]}  Nxe5 {[%clk 0:00:03]} 36. Rxe5 {[%clk 0:00:11]}  Rf7 {[%clk 0:00:04]} 37. R1e4 {[%clk 0:00:09]}  Qc3 {[%clk 0:00:04]} 38. Qxc3 {[%clk 0:00:09]}  Rxc3 {[%clk 0:00:05]} 39. Rxe7 {[%clk 0:00:09]}  Rd3 {[%clk 0:00:04]} 40. R4e5 {[%clk 0:00:07]}  a5 {[%clk 0:00:03]} 41. bxa5 {[%clk 0:00:06]}  bxa5 {[%clk 0:00:04]} 42. d6 {[%clk 0:00:03]}  Rxd6 {[%clk 0:00:04]} 43. Rxf7+ {[%clk 0:00:04]}  Kxf7 {[%clk 0:00:05]} 44. Rxa5 {[%clk 0:00:04]}  Rd2 {[%clk 0:00:05]} 45. Ra7+ {[%clk 0:00:04]}  Kg8 {[%clk 0:00:06]} 46. Re7 {[%clk 0:00:04]}  h5 {[%clk 0:00:06]} 47. Re3 {[%clk 0:00:03]}  Kf7 {[%clk 0:00:05]} 48. Rf3 {[%clk 0:00:04]}  Kf6 {[%clk 0:00:06]} 49. Rf2 {[%clk 0:00:04]}  Rd3 {[%clk 0:00:05]} 50. Kg2 {[%clk 0:00:05]}  Ra3 {[%clk 0:00:06]} 51. Re2 {[%clk 0:00:05]}  Kf5 {[%clk 0:00:06]} 52. Re5+ {[%clk 0:00:04]}  Kf6 {[%clk 0:00:06]} 53. Kf2 {[%clk 0:00:04]}  Rb3 {[%clk 0:00:06]} 54. Re3 {[%clk 0:00:04]}  Rb2+ {[%clk 0:00:06]} 55. Re2 {[%clk 0:00:05]}  Rb3 {[%clk 0:00:06]} 56. Re3 {[%clk 0:00:05]}  Rb2+ {[%clk 0:00:06]} 57. Re2 {[%clk 0:00:05]}  Rb3 {[%clk 0:00:07]} 58. Ra2 {[%clk 0:00:06]}  Rc3 {[%clk 0:00:07]} 59. Kg2 {[%clk 0:00:06]}  Rb3 {[%clk 0:00:07]} 60. Kh3 {[%clk 0:00:07]}  Rc3 {[%clk 0:00:07]} 61. Kh4 {[%clk 0:00:07]}  Rc5 {[%clk 0:00:07]} 62. Ra6+ {[%clk 0:00:08]}  Kg7 {[%clk 0:00:07]} 63. h3 {[%clk 0:00:08]}  Kf7 {[%clk 0:00:07]} 64. Ra7+ {[%clk 0:00:08]}  Kf6 {[%clk 0:00:07]} 65. Rb7 {[%clk 0:00:08]}  Ra5 {[%clk 0:00:06]} 66. g4 {[%clk 0:00:08]}  hxg4 {[%clk 0:00:06]} 67. hxg4 {[%clk 0:00:08]}  g5+ {[%clk 0:00:06]} 68. fxg5+ {[%clk 0:00:08]}  Kg6 {[%clk 0:00:06]} 69. Rb6+ {[%clk 0:00:08]}  Kg7 {[%clk 0:00:07]} 70. Kh5 {[%clk 0:00:09]}  Rc5 {[%clk 0:00:07]} 71. Rb7+ {[%clk 0:00:09]}  Kg8 {[%clk 0:00:07]} 72. Kh6 {[%clk 0:00:09]}  Rc6+ {[%clk 0:00:07]} 73. g6 {[%clk 0:00:09]}  Rc8 {[%clk 0:00:06]} 74. Rg7+ {[%clk 0:00:07]}  Kh8 {[%clk 0:00:06]} 75. Rf7 {[%clk 0:00:08]}  Kg8 {[%clk 0:00:06]} 76. Rf6 {[%clk 0:00:08]}  Rc1 {[%clk 0:00:05]} 77. g7 {[%clk 0:00:08]}  Rh1+ {[%clk 0:00:05]} 78. Kg6 {[%clk 0:00:08]}  Rh6+ {[%clk 0:00:05]} 79. Kf5 {[%clk 0:00:08]}  Kxg7 {[%clk 0:00:04]} 80. Rxh6 {[%clk 0:00:08]}  Kxh6 {[%clk 0:00:04]} 81. Kf6 {[%clk 0:00:08]}  Kh7 {[%clk 0:00:05]} 82. g5 {[%clk 0:00:07]}  Kh8 {[%clk 0:00:05]} 83. Kf7 {[%clk 0:00:06]}  Kh7 {[%clk 0:00:05]} 84. g6+ {[%clk 0:00:07]}  Kh8 {[%clk 0:00:05]} 85. g7+ {[%clk 0:00:08]} 1-0


[Site "https://www.chess.com"]